bitfinex-derivatives/quotes_SOLF0:USTF0_20250630
["timestamp","ask_amount","ask_price","bid_price","bid_amount"]
[1751308531248,3.76785317,155.99,155.91,47.48]
[1751308531454,6.4105,155.96,155.91,53.8921]
[1751308531651,3.76785317,155.97,155.87,601.96]
[1751308531949,3.76785317,155.97,155.89,6.4131]
[1751308532254,3.76785317,155.97,155.88,3.76785317]
[1751308532456,3.76785317,155.97,155.89,6.413]
[1751308532655,3.76785317,155.93,155.86,47.28]
[1751308532854,6.4129,155.9,155.86,53.6941]
[1751308533056,3.76785317,155.94,155.86,47.28]
[1751308533557,10.35875317,155.96,155.87,3.76785317]
[1751308533758,6.5909,155.96,155.88,5.58363055]
[1751308533961,6.411,155.95,155.88,5.58363055]
[1751308535453,8.622,155.96,155.88,5.58363055]
[1751308535653,14.17079741,156.0,155.93,6.4111]
[1751308535953,6.4097,155.98,155.9,5.58363055]
[1751308536163,6.5844,156.0,155.92,5.58363055]
[1751308536455,6.4093,155.99,155.92,52.84363055]
[1751308536656,47.48,156.01,155.94,5.58363055]
[1751308537154,47.48,156.01,155.96,6.41]
[1751308537357,9.98373055,156.04,155.96,6.41]
[1751308537562,6.4091,155.99,155.95,6.4105]
[1751308537760,14.18334696,156.04,155.95,6.4105]
[1751308538755,5.58363055,156.02,155.94,11.99453055]
[1751308538950,5.58363055,156.02,155.94,6.4109]
[1751308539157,5.58363055,156.02,155.92,52.84363055]
[1751308539355,6.4097,155.98,155.95,6.4107]
[1751308539555,5.58363055,156.02,155.92,47.26]
[1751308539749,8.59971641,156.04,155.92,47.26]
[1751308539949,5.58363055,156.0,155.92,47.26]
[1751308540155,6.4113,155.94,155.92,47.26]
[1751308540551,2.2571,155.99,155.92,47.26]
[1751308540961,5.58363055,155.98,155.88,52.84363055]
[1751308541157,5.58363055,155.96,155.87,47.26]
[1751308541460,5.58363055,155.96,155.88,6.4135]
[1751308541461,6.4128,155.9,155.88,6.4135]
[1751308541657,5.58363055,155.96,155.87,47.26]
[1751308541858,6.4126,155.91,155.88,6.4134]
[1751308542256,9.92803055,155.98,155.87,52.84363055]
[1751308542459,6.4117,155.93,155.9,6.4127]
[1751308543764,4.3444,155.98,155.87,52.84363055]
[1751308543958,4.3444,155.98,155.89,5.58363055]
[1751308544266,4.3444,155.98,155.93,6.4113]
[1751308544461,6.4107,155.96,155.93,6.4113]
[1751308545158,6.4099,155.97,155.94,6.4111]
[1751308545355,2.2714,156.04,155.95,5.57858118]
[1751308545560,2.2714,156.04,155.97,5.57858118]
[1751308545761,2.2714,156.04,155.98,6.4092]
[1751308546265,6.4089,156.0,155.97,47.26]
[1751308546861,2.2714,156.04,155.97,47.26]
[1751308547565,6.4093,155.99,155.97,47.26]
[1751308548167,6.4094,155.98,155.97,47.26]
[1751308549170,4.59521552,156.03,155.94,5.57811629]
[1751308549464,10.17333181,156.02,155.93,2.1595]
[1751308549671,6.4108,155.95,155.93,2.1595]
[1751308549858,4.59521552,156.0,155.9,7.83701629]
[1751308550063,4.59521552,155.99,155.9,7.83701629]
[1751308550264,6.4109,155.95,155.9,7.83701629]
[1751308550770,4.59521552,155.99,155.91,5.57811629]
[1751308550959,4.59521552,156.0,155.91,5.57811629]
[1751308551170,4.59521552,156.0,155.92,6.4116]
[1751308551364,4.59521552,155.99,155.92,6.4116]
[1751308551567,10.17333181,156.0,155.91,5.57811629]
[1751308551760,4.59521552,155.99,155.91,5.57811629]
[1751308551958,6.4114,155.94,155.91,5.57811629]
[1751308552558,6.4114,155.94,155.91,11.99021629]
[1751308554267,4.59521552,155.99,155.91,11.99021629]
[1751308554268,6.4108,155.95,155.91,11.99021629]
[1751308554669,6.4108,155.95,155.92,6.4118]
[1751308556069,6.4111,155.94,155.91,6.4122]
[1751308556670,10.17333181,155.98,155.9,6.4125]
[1751308556975,7.77041629,155.98,155.9,6.4125]
[1751308557176,12.36563181,155.98,155.9,6.4125]
[1751308557375,7.77041629,155.98,155.9,6.4125]
[1751308557576,12.36563181,155.98,155.9,6.4125]
[1751308557876,7.77041629,155.98,155.9,6.4125]
[1751308558073,6.78751552,155.98,155.9,5.57811629]
[1751308558271,6.4107,155.95,155.9,5.57811629]
[1751308558469,6.78751552,155.98,155.9,5.57811629]
[1751308558673,2.1923,155.98,155.93,6.4115]
[1751308558870,6.78751552,155.98,155.93,6.4115]
[1751308559071,2.1923,155.98,155.93,6.4115]
[1751308559270,6.78751552,155.98,155.93,6.4115]
[1751308559472,2.1923,155.98,155.93,6.4115]
[1751308559776,6.4106,155.96,155.93,6.4115]
[1751308561472,6.4107,155.95,155.92,6.4117]
[1751308561673,6.78751552,155.98,155.9,5.57811629]
[1751308561873,6.78751552,155.98,155.88,57.42164074]
[1751308561874,6.4121,155.92,155.88,57.42164074]
[1751308562479,6.4121,155.92,155.88,51.00834074]
[1751308563474,6.4121,155.92,155.84,5.94330784]
[1751308563475,4.59521552,155.96,155.89,3.76834074]
[1751308563681,4.59521552,155.95,155.89,3.76834074]
[1751308563978,4.59521552,155.97,155.89,3.76834074]
[1751308564179,6.4121,155.92,155.89,10.18134074]
[1751308565580,4.59521552,155.95,155.87,46.8]
[1751308565782,4.59521552,155.94,155.87,46.8]
[1751308566078,4.59521552,155.93,155.87,46.8]
[1751308566278,4.59521552,155.92,155.87,46.8]
[1751308566469,4.59521552,155.93,155.87,46.8]
[1751308566675,4.59521552,155.93,155.88,3.76834074]
[1751308566975,4.59521552,155.93,155.87,46.8]
[1751308566976,4.59521552,155.94,155.9,3.76843027]
[1751308567177,4.59521552,155.96,155.9,3.76843027]
[1751308567375,4.59521552,155.95,155.9,3.76843027]
[1751308567576,4.59521552,155.95,155.88,2.2176]
[1751308567577,6.4111,155.94,155.88,2.2176]
[1751308567782,6.4111,155.94,155.89,3.76843027]
[1751308568279,6.4111,155.94,155.91,6.4123]
[1751308568481,11.00631552,155.94,155.91,6.4123]
[1751308568686,6.4111,155.94,155.91,6.4123]
[1751308569182,11.00631552,155.94,155.91,6.4123]
[1751308569376,6.4111,155.94,155.91,6.4123]
[1751308569775,11.00631552,155.94,155.91,6.4123]
[1751308570070,6.4111,155.94,155.91,6.4123]
[1751308570275,6.4111,155.94,155.9,6.4125]
[1751308570472,11.00631552,155.94,155.9,6.4125]
[1751308570681,4.59521552,155.96,155.91,3.76843027]
[1751308570878,4.59521552,155.95,155.91,3.76843027]
[1751308571085,4.59521552,155.96,155.91,3.76843027]
[1751308571282,4.59521552,155.95,155.91,3.76843027]
[1751308571474,4.59521552,155.95,155.92,6.4118]
[1751308572289,11.00611552,155.95,155.92,6.4118]
[1751308572482,6.4109,155.95,155.92,6.4118]
[1751308572684,4.59521552,155.95,155.91,10.18063027]
[1751308572887,6.4115,155.93,155.91,3.76843027]
[1751308573587,6.4112,155.94,155.91,3.76843027]
[1751308573790,4.59521552,155.94,155.91,3.76843027]
[1751308573983,4.59521552,155.95,155.92,6.4119]
[1751308574184,4.59521552,155.94,155.91,3.76843027]
[1751308574383,4.59521552,155.94,155.89,5.94330784]
[1751308574384,4.59521552,155.95,155.89,16.12473811]
[1751308574590,8.77829243,155.94,155.87,56.51173811]
[1751308574785,6.4125,155.91,155.87,56.51173811]
[1751308574985,6.4125,155.91,155.88,6.4133]
[1751308575180,6.4126,155.91,155.88,6.4133]
[1751308575487,4.59521552,155.92,155.87,50.56843027]
[1751308575687,8.77829243,155.94,155.87,50.56843027]
[1751308575884,4.59521552,155.93,155.87,50.56843027]
[1751308576080,11.00731552,155.92,155.87,50.56843027]
[1751308576285,6.4121,155.92,155.87,50.56843027]
[1751308576686,6.4121,155.92,155.89,6.4129]
[1751308577191,6.4123,155.91,155.88,10.18173027]
[1751308577689,6.4121,155.92,155.88,3.76843027]
[1751308577886,4.59521552,155.93,155.88,3.76843027]
[1751308578088,4.59521552,155.93,155.86,52.74330784]
[1751308578089,6.4132,155.89,155.86,50.57025637]
[1751308578286,8.77829243,155.91,155.86,46.8]
[1751308578481,4.59521552,155.9,155.86,46.8]
[1751308578680,8.77829243,155.91,155.86,46.8]
[1751308578885,8.77829243,155.93,155.87,6.4137]
[1751308579081,8.77829243,155.92,155.87,6.4137]
[1751308579281,4.59521552,155.91,155.87,6.4137]
[1751308579482,6.413,155.9,155.87,6.4137]
[1751308579686,4.59521552,155.91,155.87,6.4137]
[1751308579887,4.59521552,155.91,155.86,46.8]
[1751308580090,4.59521552,155.92,155.86,46.8]
[1751308580285,4.59521552,155.92,155.87,6.4136]
[1751308580489,6.4127,155.9,155.87,6.4136]
[1751308580694,4.59521552,155.92,155.86,46.8]
[1751308580893,4.59521552,155.93,155.87,3.77025637]
[1751308581096,6.4125,155.91,155.88,6.4134]
[1751308581397,6.4125,155.91,155.87,3.77025637]
[1751308581693,6.4121,155.92,155.89,6.4131]
[1751308582500,6.4124,155.91,155.89,6.4131]
[1751308582691,6.4124,155.91,155.88,6.4134]
[1751308582994,6.4128,155.9,155.87,3.77025637]
[1751308583199,6.4128,155.9,155.87,6.4138]
[1751308583791,8.36547189,155.92,155.86,46.8]
[1751308583997,4.59521552,155.91,155.83,3.77025637]
[1751308584194,6.4143,155.87,155.83,3.77025637]
[1751308584496,8.36547189,155.9,155.81,557.85025637]
[1751308584999,8.36547189,155.9,155.83,3.77025637]
[1751308585198,4.59521552,155.9,155.85,3.77094557]
[1751308585496,4.59521552,155.9,155.87,6.4137]
[1751308585996,13.14181552,155.91,155.87,6.4137]
[1751308586199,13.14181552,155.91,155.88,6.4135]
[1751308586596,8.5466,155.91,155.88,6.4135]
[1751308587193,8.5466,155.91,155.89,6.413]
[1751308587488,2.134,155.91,155.85,3.77094557]
[1751308587893,8.5463,155.91,155.85,3.77094557]
[1751308588389,6.4128,155.9,155.88,6.4135]
[1751308589200,8.77829243,155.92,155.85,46.8]
[1751308589499,4.59521552,155.94,155.86,3.77094557]
[1751308589699,6.4122,155.92,155.89,6.4131]
[1751308590599,6.4124,155.91,155.89,6.4131]
[1751308591396,6.4124,155.91,155.88,6.4134]
[1751308591697,8.36616109,155.93,155.85,46.8]
[1751308592002,4.59521552,155.92,155.85,46.8]
[1751308592197,8.36616109,155.91,155.85,46.8]
[1751308592394,3.77094557,155.91,155.85,46.8]
[1751308592796,8.36616109,155.91,155.85,46.8]
[1751308593106,6.4136,155.88,155.86,6.4142]
[1751308595399,8.36722503,155.89,155.81,600.54]
[1751308595605,3.77200951,155.87,155.81,46.46]
[1751308595801,3.77200951,155.85,155.77,46.46]
[1751308596000,3.77200951,155.79,155.73,5.94330784]
[1751308596210,3.77200951,155.82,155.73,3.77200951]
[1751308596595,4.59521552,155.83,155.72,5.94330784]
[1751308596804,6.82021552,155.84,155.79,6.417]
[1751308597103,2.225,155.84,155.77,3.77200951]
[1751308597304,8.6402,155.84,155.8,6.4166]
[1751308598197,8.6402,155.84,155.81,6.4161]
[1751308598198,2.225,155.84,155.81,6.4161]
[1751308599202,8.6404,155.84,155.81,6.4161]
[1751308600904,8.6404,155.84,155.77,3.77200951]
[1751308600905,2.225,155.84,155.82,6.4159]
[1751308601105,2.225,155.84,155.77,3.77200951]
[1751308601507,8.6403,155.84,155.81,6.4162]
[1751308602810,8.6403,155.84,155.8,6.4167]
[1751308602811,6.4157,155.83,155.8,6.4167]
[1751308604012,6.416,155.82,155.8,6.4167]
[1751308604213,2.225,155.84,155.8,6.4167]
[1751308604614,6.4159,155.83,155.81,6.4163]
[1751308604912,6.4159,155.83,155.76,50.25200951]
[1751308605213,6.4159,155.83,155.8,6.4166]
[1751308605814,6.4159,155.83,155.79,6.4169]
[1751308606007,6.4161,155.82,155.79,6.4169]
[1751308606911,2.225,155.84,155.76,50.25200951]
[1751308607615,2.225,155.84,155.79,6.417]
[1751308607818,2.225,155.84,155.76,50.25200951]
[1751308609011,2.225,155.84,155.78,6.4175]
[1751308609617,6.4167,155.81,155.78,6.4175]
[1751308610016,2.225,155.84,155.77,6.4178]
[1751308610206,6.4169,155.8,155.77,6.4178]
[1751308610405,2.225,155.84,155.78,6.4175]
[1751308610815,2.225,155.84,155.76,50.25200951]
[1751308611010,2.225,155.84,155.78,6.4175]
[1751308611216,3.77200951,155.83,155.76,50.25200951]
[1751308611523,3.77200951,155.83,155.76,52.8983]
[1751308612019,6.4176,155.79,155.76,52.8983]
[1751308613524,3.77200951,155.81,155.76,46.48]
[1751308613713,3.77200951,155.81,155.75,6.4187]
[1751308614113,6.4179,155.78,155.75,6.4187]
[1751308614718,46.48,155.82,155.72,46.48]
[1751308614719,6.419,155.75,155.72,46.48]
[1751308615525,6.4188,155.76,155.72,46.48]
[1751308615726,3.77200951,155.79,155.72,46.48]
[1751308616028,6.4192,155.75,155.72,52.8999]
[1751308616825,3.77200951,155.79,155.72,46.48]
[1751308617425,8.0915331,155.81,155.73,3.77682603]
[1751308617626,8.0915331,155.81,155.72,46.48]
[1751308617815,8.0915331,155.81,155.73,3.77682603]
[1751308618228,6.418,155.78,155.75,6.4186]
[1751308618425,8.0915331,155.81,155.75,6.4186]
[1751308618624,8.0915331,155.81,155.73,3.77682603]
[1751308618825,6.4179,155.78,155.75,6.4189]
[1751308619026,8.0915331,155.81,155.75,6.4189]
[1751308619330,6.418,155.78,155.75,6.4189]
[1751308619526,8.0915331,155.81,155.75,6.4189]
[1751308620527,3.77702238,155.8,155.72,46.48]
[1751308620733,3.77702238,155.78,155.71,2.0915]
[1751308620934,6.4191,155.75,155.73,6.4196]
[1751308621232,3.77702238,155.78,155.73,6.4196]
[1751308621438,6.4189,155.76,155.73,6.4196]
[1751308622026,3.77702238,155.8,155.72,3.77702238]
[1751308622731,6.4178,155.78,155.75,6.4186]
[1751308623437,6.4182,155.77,155.75,6.4186]
[1751308623623,3.77702238,155.8,155.73,6.4195]
[1751308624134,3.77702238,155.76,155.66,76.34470593]
[1751308624328,4.31470707,155.81,155.65,5.94330784]
[1751308624329,3.77702238,155.74,155.65,5.94330784]
[1751308624530,3.77702238,155.72,155.64,52.9396]
[1751308625132,6.4221,155.68,155.65,6.4229]
[1751308625331,3.77702238,155.72,155.65,6.4229]
[1751308625743,3.77702238,155.72,155.64,46.32]
[1751308625744,6.423,155.66,155.64,46.32]
[1751308625933,6.423,155.66,155.63,6.4238]
[1751308626127,3.77702238,155.7,155.61,2.2383]
[1751308626438,6.4233,155.65,155.62,6.4241]
[1751308626729,4.21951365,155.71,155.56,5.94330784]
[1751308626934,3.77702238,155.69,155.61,3.77702238]
[1751308627323,6.4224,155.67,155.61,10.20142238]
[1751308627529,3.77702238,155.69,155.61,10.20142238]
[1751308627735,3.77702238,155.67,155.59,3.77702238]
[1751308628532,6.4245,155.62,155.59,6.4254]
[1751308628838,3.77702238,155.65,155.57,4.4122]
[1751308629034,3.77702238,155.63,155.56,46.32]
[1751308629342,3.77702238,155.63,155.56,50.09702238]
[1751308629635,12.8973,155.66,155.58,3.77702238]
[1751308629833,3.77702238,155.69,155.6,3.77702238]
[1751308630436,3.77702238,155.69,155.62,3.77702238]
[1751308630839,6.4218,155.69,155.65,6.4228]
[1751308631235,6.422,155.68,155.65,6.4228]
[1751308631540,6.422,155.68,155.64,6.4233]
[1751308631733,46.34,155.71,155.62,4.3495]
[1751308631734,3.77702238,155.7,155.62,4.3495]
[1751308632038,3.77702238,155.7,155.62,10.7735]
[1751308632635,3.77702238,155.7,155.62,4.3495]
[1751308632937,3.77702238,155.7,155.62,2.1144]
[1751308633136,3.77702238,155.7,155.63,6.4238]
[1751308633439,3.77702238,155.7,155.63,3.77702238]
[1751308633641,6.4217,155.69,155.63,3.77702238]
[1751308633842,46.34,155.71,155.65,6.4227]
[1751308634333,46.34,155.71,155.63,3.77702238]
[1751308635441,6.4227,155.66,155.63,10.20072238]
[1751308635639,3.77702238,155.7,155.63,3.77702238]
[1751308635838,3.77702238,155.7,155.62,4.3302]
[1751308636238,3.77702238,155.7,155.62,10.7543]
[1751308636932,6.423,155.66,155.62,10.7543]
[1751308637132,3.77702238,155.7,155.62,10.7543]
[1751308637745,46.34,155.71,155.63,6.4238]
[1751308638046,3.77702238,155.7,155.62,4.3302]
[1751308638441,6.4231,155.65,155.62,10.7542]
[1751308639444,3.77702238,155.7,155.63,6.4238]
[1751308639643,3.77702238,155.7,155.62,4.3302]
[1751308639947,6.4235,155.64,155.62,4.3302]
[1751308640142,3.77702238,155.66,155.57,6.01212238]
[1751308640347,3.77702238,155.62,155.57,2.2351]
[1751308641142,6.26876414,155.65,155.57,2.2351]
[1751308641143,6.4254,155.6,155.57,8.6613]
[1751308641748,6.4255,155.59,155.57,2.2351]
[1751308641942,3.77702238,155.63,155.57,2.2351]
[1751308642344,3.77702238,155.65,155.57,6.01212238]
[1751308642549,46.34,155.66,155.57,6.01212238]
[1751308642745,6.4237,155.64,155.61,6.4244]
[1751308642946,6.4237,155.64,155.59,3.77702238]
[1751308643249,46.34,155.66,155.59,3.77702238]
[1751308643654,3.77702238,155.68,155.59,3.77702238]
[1751308643853,3.77702238,155.68,155.6,6.425]
[1751308643854,6.4238,155.64,155.6,6.425]
[1751308644054,3.77702238,155.68,155.6,6.425]
[1751308644256,3.77702238,155.68,155.59,3.77702238]
[1751308644454,3.77702238,155.64,155.57,48.5751]
[1751308645648,3.77702238,155.64,155.57,55.0014]
[1751308645649,6.4254,155.6,155.57,55.0014]
[1751308645856,3.77702238,155.64,155.57,55.0014]
[1751308646152,6.4259,155.58,155.57,46.34]
[1751308646353,3.77702238,155.64,155.56,6.4266]
[1751308646555,3.77702238,155.64,155.55,5.93092238]
[1751308646757,3.77702238,155.64,155.56,6.4264]
[1751308647049,3.77702238,155.64,155.55,5.93092238]
[1751308647456,6.4254,155.6,155.57,6.4263]
[1751308647851,6.4254,155.6,155.57,3.77702238]
[1751308648357,46.34,155.65,155.59,6.4253]
[1751308648857,6.4236,155.64,155.59,3.77702238]
[1751308649051,3.77702238,155.68,155.59,3.77702238]
[1751308649554,46.36,155.7,155.59,3.77702238]
[1751308649555,6.4245,155.62,155.59,10.20232238]
[1751308649756,3.77702238,155.66,155.58,46.36]
[1751308649958,6.4245,155.62,155.58,46.36]
[1751308650258,3.77702238,155.62,155.54,3.77702238]
[1751308650457,6.426,155.58,155.54,3.77702238]
[1751308650751,3.77702238,155.62,155.54,3.77702238]
[1751308650958,6.426,155.58,155.54,3.77702238]
[1751308651154,3.77702238,155.6,155.53,5.53839803]
[1751308651353,3.77702238,155.58,155.5,3.77702238]
[1751308651652,2.189,155.61,155.49,46.36]
[1751308651653,2.189,155.61,155.52,3.77702238]
[1751308651857,5.96602238,155.61,155.52,3.77702238]
[1751308652356,6.427,155.56,155.52,3.77702238]
[1751308652551,5.96602238,155.61,155.52,3.77702238]
[1751308652758,3.77702238,155.59,155.51,3.77702238]
[1751308652956,3.77702238,155.6,155.51,3.77702238]
[1751308653158,3.77702238,155.6,155.49,46.36]
[1751308653356,3.77702238,155.58,155.51,3.77702238]
[1751308653660,6.4281,155.53,155.5,6.429]
[1751308653861,6.4281,155.53,155.49,50.13702238]
[1751308654062,3.77702238,155.58,155.49,50.13702238]
[1751308654457,6.4277,155.54,155.51,6.4286]
[1751308654956,6.4277,155.54,155.49,50.13702238]
[1751308655156,6.4277,155.54,155.51,6.4287]
[1751308655361,6.4273,155.55,155.51,3.77702238]
[1751308655663,3.77702238,155.58,155.49,3.77702238]
[1751308655862,3.77702238,155.58,155.51,6.4288]
[1751308656660,3.77702238,155.58,155.5,6.4291]
[1751308657660,3.77702238,155.58,155.49,3.77702238]
[1751308658164,6.4289,155.51,155.49,10.20642238]
[1751308658461,3.77702238,155.56,155.49,10.20642238]
[1751308658664,3.77702238,155.56,155.5,6.4291]
[1751308659560,6.4282,155.53,155.5,6.4291]
[1751308659760,3.77702238,155.56,155.51,6.4286]
[1751308659960,3.77702238,155.56,155.49,3.77702238]
[1751308660161,3.77702238,155.56,155.48,46.48]
[1751308660864,3.77702238,155.56,155.48,52.9098]
[1751308661463,6.429,155.51,155.48,52.9098]
[1751308661669,3.77702238,155.56,155.49,6.4296]
[1751308661870,6.4284,155.53,155.48,46.48]
[1751308662069,2.1028,155.58,155.48,50.25702238]
[1751308662272,3.77702238,155.57,155.49,3.77702238]
[1751308662872,2.0847,155.59,155.49,3.77702238]
[1751308663071,2.0847,155.59,155.5,5.29031553]
[1751308663072,5.86172238,155.59,155.5,5.29031553]
[1751308663972,6.4273,155.55,155.52,6.4282]
[1751308664574,6.427,155.56,155.53,6.4279]
[1751308665069,6.4274,155.55,155.52,6.4282]
[1751308665673,6.4274,155.55,155.53,6.428]
[1751308665869,5.96602238,155.61,155.53,50.27702238]
[1751308666274,5.96602238,155.61,155.54,6.4272]
[1751308666470,6.4262,155.58,155.53,50.27702238]
[1751308666666,5.96602238,155.61,155.55,6.4272]
[1751308667071,6.4262,155.58,155.55,6.4272]
[1751308667270,5.96602238,155.61,155.55,6.4272]
[1751308667467,5.96602238,155.61,155.54,6.4274]
[1751308667672,6.4263,155.57,155.54,6.4274]
[1751308668074,6.4266,155.57,155.54,6.4274]
[1751308668274,5.96602238,155.61,155.53,50.27702238]
[1751308668573,5.96602238,155.61,155.54,5.31917372]
[1751308668775,6.4258,155.59,155.56,6.4263]
[1751308669278,6.426,155.58,155.56,6.4263]
[1751308671081,6.4264,155.57,155.55,6.427]
[1751308671477,6.4261,155.58,155.55,6.427]
[1751308671677,5.96602238,155.61,155.55,6.427]
[1751308672077,6.4262,155.58,155.55,6.427]
[1751308672583,5.96602238,155.61,155.54,6.4274]
[1751308672781,5.96602238,155.61,155.53,46.5]
[1751308673076,6.4272,155.55,155.54,5.30536321]
[1751308673282,3.77702238,155.59,155.51,6.4287]
[1751308673483,3.77702238,155.59,155.52,5.30607449]
[1751308673680,6.4276,155.54,155.53,5.30607449]
[1751308674077,6.4276,155.54,155.52,6.4284]
[1751308674386,6.4276,155.54,155.51,6.4287]
[1751308675587,3.77702238,155.59,155.49,52.44330784]
[1751308675778,3.77702238,155.57,155.48,3.77702238]
[1751308675978,3.78882341,155.56,155.48,3.78882341]
[1751308676180,3.78882341,155.58,155.48,3.78882341]
[1751308676477,3.78882341,155.58,155.5,3.78882341]
[1751308676679,6.4276,155.54,155.5,10.21792341]
[1751308677082,6.4276,155.54,155.5,3.78882341]
[1751308677277,6.4268,155.56,155.53,6.4278]
[1751308677685,7.80530855,155.59,155.48,5.94330784]
[1751308677883,6.4272,155.55,155.52,6.4282]
[1751308678184,6.4272,155.55,155.5,3.78882341]
[1751308678385,6.4272,155.55,155.52,6.4281]
[1751308678985,6.4276,155.54,155.51,6.4286]
[1751308679184,3.78882341,155.57,155.52,5.31763979]
[1751308679382,3.78882341,155.57,155.49,3.78882341]
[1751308679582,3.78882341,155.57,155.5,5.31955002]
[1751308679776,3.78882341,155.57,155.51,5.31955002]
[1751308679978,6.4278,155.54,155.51,6.4286]
[1751308680486,6.428,155.53,155.52,5.3212683]
[1751308681286,6.4287,155.52,155.47,62.82923125]
[1751308681486,6.4287,155.52,155.49,6.4294]
[1751308681682,3.78882341,155.57,155.5,5.32320898]
[1751308681887,3.78882341,155.57,155.51,5.32320898]
[1751308682083,3.78882341,155.57,155.48,6.4299]
[1751308682284,3.78882341,155.57,155.49,5.32306575]
[1751308682485,3.78882341,155.57,155.5,5.32306575]
[1751308682687,3.78882341,155.57,155.48,6.4299]
[1751308682881,4.01905147,155.59,155.45,7.94859102]
[1751308682882,3.79064658,155.5,155.45,5.94330784]
[1751308683082,46.5,155.52,155.46,5.32588904]
[1751308683380,2.2505,155.56,155.47,5.32654966]
[1751308683381,6.429,155.51,155.47,5.32654966]
[1751308683579,6.429,155.51,155.48,5.32615415]
[1751308683787,50.29064658,155.53,155.45,3.79064658]
[1751308683987,3.79064658,155.51,155.46,5.32615365]
[1751308684188,3.79064658,155.51,155.44,2.2321]
[1751308684395,6.4299,155.49,155.45,5.33598071]
[1751308684587,6.4299,155.49,155.46,5.33598071]
[1751308684889,46.5,155.53,155.43,53.44271083]
[1751308685090,6.429,155.51,155.44,9.12662779]
[1751308685291,46.5,155.53,155.45,5.33598121]
[1751308685489,46.5,155.53,155.48,6.4298]
[1751308685687,6.4287,155.52,155.46,3.79064658]
[1751308686000,6.4287,155.52,155.49,6.4296]
[1751308686582,6.4287,155.52,155.46,3.79064658]
[1751308686583,46.5,155.53,155.45,5.94330784]
[1751308686788,46.5,155.53,155.46,5.33491819]
[1751308686990,3.79064658,155.52,155.47,11.76511819]
[1751308687188,6.4296,155.5,155.48,5.33491819]
[1751308687390,6.4296,155.5,155.47,6.4302]
[1751308687591,6.4288,155.51,155.48,5.33483552]
[1751308687791,6.4288,155.51,155.46,3.79064658]
[1751308687991,6.4288,155.51,155.47,5.334678]
[1751308688192,601.82,155.6,155.48,55.50321804]
[1751308688386,3.78854004,155.58,155.49,5.334678]
[1751308688583,3.7897666,155.54,155.46,5.94330784]
[1751308688787,3.7897666,155.52,155.47,11.76646688]
[1751308688983,3.7897666,155.52,155.48,5.33616688]
[1751308689191,6.4294,155.5,155.49,5.35066518]
[1751308690293,50.1697666,155.54,155.49,5.35066518]
[1751308690497,50.1697666,155.54,155.46,3.7897666]
[1751308690686,50.1697666,155.54,155.47,5.35089154]
[1751308690993,6.4289,155.51,155.48,11.78069154]
[1751308691190,6.4289,155.51,155.49,5.35089154]
[1751308691393,50.1697666,155.54,155.49,5.35089154]
[1751308691394,6.4285,155.52,155.49,6.4296]
[1751308691589,6.4285,155.52,155.45,8.21420784]
[1751308691788,6.4285,155.52,155.46,5.35149585]
[1751308691989,6.4285,155.52,155.48,6.4298]
[1751308692189,6.4289,155.51,155.49,5.35149585]
[1751308692385,6.4289,155.51,155.48,6.4298]
[1751308692589,46.38,155.54,155.49,5.35228457]
[1751308692790,6.4295,155.5,155.47,6.4303]
[1751308692991,6.4295,155.5,155.48,5.35228457]
[1751308693195,6.4295,155.5,155.49,5.35228457]
[1751308694995,48.5796,155.54,155.49,5.35228457]
[1751308695197,48.5796,155.54,155.46,9.73307444]
[1751308695397,48.5796,155.54,155.47,5.35312767]
[1751308695698,48.5796,155.54,155.48,5.35312767]
[1751308695893,48.5796,155.54,155.49,5.35312767]
[1751308695894,3.7897666,155.53,155.49,5.35312767]
[1751308696090,6.4299,155.49,155.46,12.37390784]
[1751308696295,3.7897666,155.53,155.47,5.35312767]
[1751308696599,3.7897666,155.53,155.48,11.78312767]
[1751308696791,3.7897666,155.53,155.49,5.35312767]
[1751308696992,3.7897666,155.53,155.48,6.43]
[1751308697195,6.429,155.51,155.49,5.35370623]
[1751308697396,6.429,155.51,155.5,5.35370623]
[1751308697588,6.429,155.51,155.48,6.43]